bitfinex-derivatives/quotes_BTCF0:USTF0_20251228
["timestamp","ask_amount","ask_price","bid_price","bid_amount"]
[1766898921802,0.02534718,87740.0,87729.0,0.11446878]
[1766898922004,0.02534718,87739.0,87729.0,0.11446878]
[1766898922195,0.0114052,87741.0,87729.0,0.11446878]
[1766898922396,0.02534759,87740.0,87729.0,0.11446878]
[1766898922598,0.02534759,87739.0,87729.0,0.11446878]
[1766898922796,0.0114052,87741.0,87729.0,0.11446878]
[1766898922997,0.02534759,87740.0,87729.0,0.11446878]
[1766898923201,0.02534759,87739.0,87729.0,0.11446878]
[1766898923400,0.0114052,87741.0,87729.0,0.11446878]
[1766898923607,0.05155889,87740.0,87729.0,0.11446878]
[1766898923803,0.02534807,87739.0,87729.0,0.11446878]
[1766898924002,0.01157582,87744.0,87729.0,0.11446878]
[1766898924204,0.02621082,87740.0,87729.0,0.11446878]
[1766898924398,0.02534865,87739.0,87729.0,0.11446878]
[1766898924798,0.01157582,87744.0,87729.0,0.11446878]
[1766898925102,0.05155957,87743.0,87729.0,0.12587538]
[1766898925298,0.02534875,87742.0,87729.0,0.12587538]
[1766898925705,0.02534875,87741.0,87729.0,0.12587538]
[1766898925899,0.02534875,87740.0,87729.0,0.12587538]
[1766898926100,0.02534875,87739.0,87729.0,0.12587538]
[1766898926301,0.01157582,87744.0,87729.0,0.12587538]
[1766898926500,0.02535028,87743.0,87729.0,0.12587538]
[1766898926701,0.02535028,87742.0,87729.0,0.12587538]
[1766898927004,0.02535028,87741.0,87729.0,0.12587538]
[1766898927199,0.02535028,87740.0,87729.0,0.12587538]
[1766898927400,0.02535028,87739.0,87729.0,0.12587538]
[1766898927800,0.01157582,87744.0,87729.0,0.12587538]
[1766898928001,0.05156219,87743.0,87729.0,0.12587538]
[1766898928201,0.02535137,87742.0,87731.0,0.0114064]
[1766898928401,0.02535137,87742.0,87729.0,0.11446878]
[1766898928610,0.02535137,87741.0,87729.0,0.11446878]
[1766898928910,0.02535137,87740.0,87729.0,0.11446878]
[1766898929111,0.02535137,87739.0,87729.0,0.11446878]
[1766898929312,0.02535137,87738.0,87730.0,0.0114065]
[1766898929612,0.00017102,87744.0,87730.0,0.0114065]
[1766898929813,0.02535621,87743.0,87730.0,0.0114065]
[1766898930106,0.02621082,87741.0,87729.0,0.11446878]
[1766898930313,0.00017102,87744.0,87729.0,0.11446878]
[1766898930518,0.00017102,87744.0,87735.0,0.0114058]
[1766898932108,0.00017102,87744.0,87729.0,0.11446878]
[1766898932309,0.00017102,87744.0,87732.0,0.0114063]
[1766898942117,0.02522178,87743.0,87732.0,0.0114063]
[1766898942308,0.02522178,87742.0,87732.0,0.0114063]
[1766898942509,0.02522178,87741.0,87732.0,0.0114063]
[1766898942710,0.00017102,87744.0,87732.0,0.0114063]
[1766898942918,0.02522166,87743.0,87732.0,0.0114063]
[1766898943118,0.02522166,87742.0,87732.0,0.0114063]
[1766898943318,0.02522166,87741.0,87732.0,0.0114063]
[1766898943514,0.02621082,87741.0,87732.0,0.0114063]
[1766898943713,0.00017102,87744.0,87732.0,0.0114063]
[1766898943914,0.02522158,87743.0,87732.0,0.0114063]
[1766898944115,0.02522158,87742.0,87732.0,0.0114063]
[1766898944312,0.02522158,87741.0,87732.0,0.0114063]
[1766898944512,0.00017102,87744.0,87732.0,0.0114063]
[1766898944818,0.02522155,87743.0,87732.0,0.0114063]
[1766898945022,0.02522155,87742.0,87732.0,0.0114063]
[1766898945215,0.02522155,87741.0,87732.0,0.0114063]
[1766898945416,0.00017102,87744.0,87729.0,0.12587538]
[1766898945714,0.02522155,87743.0,87729.0,0.12587538]
[1766898945914,0.02522155,87742.0,87729.0,0.12587538]
[1766898946114,0.02522155,87741.0,87729.0,0.12587538]
[1766898946314,0.00017102,87744.0,87729.0,0.12587538]
[1766898946518,0.02522157,87743.0,87729.0,0.12587538]
[1766898946719,0.02522157,87742.0,87729.0,0.12587538]
[1766898946919,0.02522157,87741.0,87729.0,0.12587538]
[1766898947109,0.00017102,87744.0,87729.0,0.12587538]
[1766898947310,0.02522157,87743.0,87729.0,0.12587538]
[1766898947511,0.02522157,87742.0,87729.0,0.12587538]
[1766898947712,0.02522157,87741.0,87729.0,0.12587538]
[1766898947914,0.00017102,87744.0,87729.0,0.12587538]
[1766898948211,0.02621082,87740.0,87729.0,0.12587538]
[1766898948713,0.00017102,87744.0,87729.0,0.12587538]
[1766898949020,0.05143253,87743.0,87729.0,0.12587538]
[1766898949222,0.02522171,87742.0,87731.0,0.0114063]
[1766898949421,0.02522171,87741.0,87731.0,0.0114063]
[1766898949620,0.02621082,87741.0,87731.0,0.0114063]
[1766898949822,0.00017102,87744.0,87731.0,0.0114063]
[1766898950022,0.02522184,87743.0,87731.0,0.0114063]
[1766898950219,0.02522184,87742.0,87731.0,0.0114063]
[1766898950521,0.02522184,87741.0,87731.0,0.0114063]
[1766898950715,0.00017102,87744.0,87731.0,0.0114063]
[1766898950915,0.02522205,87743.0,87731.0,0.0114063]
[1766898951117,0.02522205,87742.0,87731.0,0.0114063]
[1766898951315,0.02522205,87741.0,87731.0,0.0114063]
[1766898951614,0.02621082,87741.0,87731.0,0.0114063]
[1766898951816,0.00017102,87744.0,87731.0,0.0114063]
[1766898952017,0.05143304,87743.0,87730.0,0.11446878]
[1766898952212,0.02522222,87742.0,87730.0,0.11446878]
[1766898952716,0.02522222,87741.0,87730.0,0.11446878]
[1766898952921,0.02522222,87740.0,87730.0,0.11446878]
[1766898953125,0.02522222,87739.0,87730.0,0.11446878]
[1766898953323,0.00017102,87744.0,87730.0,0.11446878]
[1766898953618,0.02522271,87743.0,87730.0,0.11446878]
[1766898953824,0.02522271,87742.0,87730.0,0.11446878]
[1766898954019,0.02522271,87741.0,87730.0,0.11446878]
[1766898954219,0.02522271,87740.0,87730.0,0.11446878]
[1766898954419,0.02522271,87739.0,87730.0,0.11446878]
[1766898954619,0.00017102,87744.0,87730.0,0.11446878]
[1766898954821,0.02522307,87743.0,87730.0,0.11446878]
[1766898955021,0.02522307,87742.0,87730.0,0.11446878]
[1766898955329,0.02522307,87741.0,87730.0,0.11446878]
[1766898955518,0.02522307,87740.0,87730.0,0.11446878]
[1766898956125,0.02522307,87739.0,87730.0,0.11446878]
[1766898956427,0.02621082,87743.0,87730.0,0.12587518]
[1766898956625,0.02522388,87742.0,87730.0,0.12587518]
[1766898956818,0.02522388,87741.0,87730.0,0.12587518]
[1766898957118,0.02522388,87740.0,87730.0,0.12587518]
[1766898957319,0.02522388,87739.0,87730.0,0.12587518]
[1766898957618,0.02621082,87743.0,87730.0,0.12587518]
[1766898957820,0.02522439,87742.0,87730.0,0.12587518]
[1766898958025,0.02522439,87741.0,87730.0,0.12587518]
[1766898958223,0.02522439,87740.0,87730.0,0.12587518]
[1766898958424,0.02522439,87739.0,87730.0,0.12587518]
[1766898958625,0.00017102,87744.0,87730.0,0.12587518]
[1766898958819,0.02522496,87743.0,87730.0,0.12587518]
[1766898959123,0.02522496,87742.0,87730.0,0.12587518]
[1766898959324,0.02522496,87741.0,87730.0,0.12587518]
[1766898959723,0.02522496,87740.0,87730.0,0.12587518]
[1766898959923,0.02522496,87739.0,87730.0,0.12587518]
[1766898960116,0.02621082,87743.0,87730.0,0.12587518]
[1766898960117,0.00017102,87744.0,87730.0,0.12587518]
[1766898960317,0.02522568,87743.0,87730.0,0.12587518]
[1766898960521,0.02522568,87742.0,87730.0,0.12587518]
[1766898960723,0.02522568,87741.0,87728.0,0.05704]
[1766898960929,0.02522568,87740.0,87730.0,0.11446878]
[1766898961115,0.02522568,87740.0,87728.0,0.05704]
[1766898961318,0.02522568,87739.0,87728.0,0.05704]
[1766898961520,0.02621082,87743.0,87728.0,0.05704]
[1766898961729,0.0251883,87742.0,87728.0,0.05704]
[1766898962028,0.0251883,87741.0,87728.0,0.05704]
[1766898962229,0.0251883,87740.0,87728.0,0.05704]
[1766898962429,0.0251883,87739.0,87728.0,0.05704]
[1766898962629,0.01157582,87744.0,87728.0,0.05704]
[1766898962830,0.02518806,87743.0,87728.0,0.05704]
[1766898963030,0.02518806,87742.0,87728.0,0.05704]
[1766898963228,0.02518806,87741.0,87728.0,0.05704]
[1766898963430,0.02518806,87740.0,87728.0,0.05704]
[1766898963629,0.02518738,87739.0,87728.0,0.05704]
[1766898963924,0.02621082,87741.0,87728.0,0.05704]
[1766898964132,0.02518794,87740.0,87728.0,0.05704]
[1766898964429,0.02518794,87739.0,87728.0,0.05704]
[1766898964630,0.02518794,87738.0,87728.0,0.05704]
[1766898964832,0.0114051,87742.0,87728.0,0.05704]
[1766898965030,0.02621082,87740.0,87728.0,0.05704]
[1766898965330,0.02518701,87739.0,87728.0,0.05704]
[1766898965531,0.02518701,87738.0,87728.0,0.05704]
[1766898965830,0.02621082,87741.0,87728.0,0.05704]
[1766898966032,0.02518585,87740.0,87728.0,0.05704]
[1766898966221,0.02518585,87739.0,87728.0,0.05704]
[1766898966423,0.0114051,87742.0,87728.0,0.05704]
[1766898966623,0.02518501,87741.0,87728.0,0.05704]
[1766898966826,0.02518501,87740.0,87728.0,0.05704]
[1766898967028,0.02518501,87739.0,87728.0,0.05704]
[1766898967230,0.0114051,87742.0,87728.0,0.05704]
[1766898967425,0.05139507,87741.0,87728.0,0.05704]
[1766898967731,0.02518425,87740.0,87728.0,0.05704]
[1766898967935,0.0114051,87742.0,87728.0,0.05704]
[1766898968135,0.02518425,87741.0,87728.0,0.05704]
[1766898968436,0.13965303,87740.0,87728.0,0.05704]
[1766898968637,0.11446878,87740.0,87728.0,0.05704]
[1766898971935,0.12587408,87740.0,87728.0,0.05704]
[1766898972144,0.0114056,87738.0,87728.0,0.05704]
[1766898972343,0.11446878,87740.0,87728.0,0.05704]
[1766898972634,0.02518157,87739.0,87728.0,0.05704]
[1766898972829,0.11446878,87740.0,87728.0,0.05704]
[1766898973025,0.02518152,87739.0,87728.0,0.05704]
[1766898973233,0.11446878,87740.0,87728.0,0.05704]
[1766898974835,0.11446878,87740.0,87729.0,0.0114066]
[1766898975941,0.05704,87743.0,87729.0,0.0114066]
[1766898976240,0.02518024,87742.0,87729.0,0.0114066]
[1766898976441,0.02518024,87741.0,87729.0,0.0114066]
[1766898976639,0.02518024,87740.0,87729.0,0.0114066]
[1766898976842,0.02518005,87739.0,87729.0,0.0114066]
[1766898977043,0.05704,87743.0,87729.0,0.0114066]
[1766898977242,0.02518006,87742.0,87729.0,0.0114066]
[1766898977432,0.02518006,87741.0,87729.0,0.0114066]
[1766898977632,0.02518006,87740.0,87729.0,0.0114066]
[1766898977837,0.02518006,87739.0,87729.0,0.0114066]
[1766898978036,0.05704,87743.0,87729.0,0.0114066]
[1766898978235,0.02517998,87742.0,87729.0,0.0114066]
[1766898978442,0.02517998,87741.0,87729.0,0.0114066]
[1766898978740,0.02517998,87740.0,87729.0,0.0114066]
[1766898978942,0.02517998,87739.0,87729.0,0.0114066]
[1766898979129,0.05704,87743.0,87729.0,0.0114066]
[1766898979328,0.02517983,87742.0,87729.0,0.0114066]
[1766898979529,0.02517983,87741.0,87729.0,0.0114066]
[1766898979832,0.02517983,87740.0,87729.0,0.0114066]
[1766898980032,0.02517983,87739.0,87729.0,0.0114066]
[1766898980232,0.05704,87743.0,87729.0,0.0114066]
[1766898980429,0.02518025,87742.0,87729.0,0.0114066]
[1766898980639,0.02518025,87741.0,87729.0,0.0114066]
[1766898980834,0.02518025,87740.0,87729.0,0.0114066]
[1766898981035,0.02518025,87739.0,87729.0,0.0114066]
[1766898981335,0.05704,87743.0,87729.0,0.0114066]
[1766898981535,0.02518056,87742.0,87729.0,0.0114066]
[1766898981742,0.02518056,87741.0,87729.0,0.0114066]
[1766898981944,0.02518056,87740.0,87729.0,0.0114066]
[1766898982142,0.02518056,87739.0,87729.0,0.0114066]
[1766898982330,0.05704,87743.0,87729.0,0.0114066]
[1766898982544,0.02518068,87742.0,87729.0,0.0114066]
[1766898982738,0.02518068,87741.0,87729.0,0.0114066]
[1766898982935,0.02518068,87740.0,87728.0,0.05704]
[1766898983141,0.02518068,87739.0,87728.0,0.05704]
[1766898983344,0.02621082,87740.0,87728.0,0.05704]
[1766898983638,0.02518083,87739.0,87728.0,0.05704]
[1766898983844,0.02621082,87740.0,87728.0,0.05704]
[1766898984146,0.02518081,87739.0,87728.0,0.05704]
[1766898984445,0.02621082,87740.0,87728.0,0.05704]
[1766898984742,0.02518113,87739.0,87728.0,0.05704]
[1766898984943,0.02621082,87740.0,87728.0,0.05704]
[1766898985137,0.02518112,87739.0,87728.0,0.05704]
[1766898985337,0.03761622,87740.0,87728.0,0.05704]
[1766898985536,0.02518132,87739.0,87728.0,0.05704]
[1766898985743,0.03761622,87740.0,87728.0,0.05704]
[1766898985943,0.02518132,87739.0,87728.0,0.05704]
[1766898986140,0.03761622,87740.0,87728.0,0.05704]
[1766898986338,0.02518166,87739.0,87728.0,0.05704]
[1766898986540,0.03761622,87740.0,87728.0,0.05704]
[1766898986744,0.0114055,87738.0,87728.0,0.05704]
[1766898987845,0.02621082,87740.0,87728.0,0.05704]
[1766898988045,0.02518218,87739.0,87728.0,0.05704]
[1766898988346,0.02518218,87738.0,87728.0,0.05704]
[1766898988547,0.02621082,87740.0,87728.0,0.05704]
[1766898988749,0.02518273,87739.0,87728.0,0.05704]
[1766898988949,0.02518273,87738.0,87728.0,0.05704]
[1766898989148,0.02621082,87740.0,87728.0,0.05704]
[1766898989351,0.02518343,87739.0,87728.0,0.05704]
[1766898989549,0.0114052,87741.0,87728.0,0.05704]
[1766898989550,0.02518343,87738.0,87728.0,0.05704]
[1766898989751,0.0114052,87741.0,87728.0,0.05704]
[1766898989951,0.02518344,87740.0,87728.0,0.05704]
[1766898990248,0.02518344,87739.0,87728.0,0.05704]
[1766898990436,0.02518344,87738.0,87728.0,0.05704]
[1766898990637,0.0114052,87741.0,87728.0,0.05704]
[1766898990844,0.02518344,87740.0,87728.0,0.05704]
[1766898991044,0.02518344,87739.0,87728.0,0.05704]
[1766898991343,0.02518344,87738.0,87728.0,0.05704]
[1766898991545,0.02621082,87740.0,87728.0,0.05704]
[1766898991845,0.02519682,87739.0,87728.0,0.05704]
[1766898992047,0.02519682,87738.0,87728.0,0.05704]
[1766898992249,0.0114052,87741.0,87728.0,0.05704]
[1766898992448,0.02519763,87740.0,87728.0,0.05704]
[1766898992649,0.02519763,87739.0,87728.0,0.05704]
[1766898992850,0.02519763,87738.0,87728.0,0.05704]
[1766898993050,0.02519763,87737.0,87728.0,0.05704]
[1766898993352,0.0114052,87741.0,87728.0,0.05704]
[1766898993555,0.05140952,87740.0,87728.0,0.05704]
[1766898993752,0.0251987,87739.0,87728.0,0.05704]
[1766898993955,0.0251987,87738.0,87728.0,0.05704]
[1766898994153,0.0251987,87737.0,87728.0,0.05704]
[1766898994354,0.0114052,87741.0,87728.0,0.05704]
[1766898994656,0.02519931,87740.0,87728.0,0.05704]
[1766898994953,0.02519931,87739.0,87728.0,0.05704]
[1766898995144,0.02519931,87738.0,87728.0,0.05704]
[1766898995341,0.02519931,87737.0,87728.0,0.05704]
[1766898995549,0.02621082,87740.0,87728.0,0.05704]
[1766898995550,0.0114052,87741.0,87728.0,0.05704]
[1766898995750,0.02519953,87740.0,87728.0,0.05704]
[1766898996054,0.02519953,87739.0,87728.0,0.05704]
[1766898996256,0.02519953,87738.0,87728.0,0.05704]
[1766898996554,0.02519953,87737.0,87728.0,0.05704]
[1766898996855,0.0114052,87741.0,87728.0,0.05704]
[1766898997057,0.05141063,87740.0,87728.0,0.05704]
[1766898997255,0.02621082,87740.0,87729.0,0.0114067]
[1766898997566,0.05704,87743.0,87731.0,0.0114064]
[1766898997948,0.01121082,87742.0,87731.0,0.0114064]
[1766898998555,0.05704,87743.0,87731.0,0.0114064]
[1766898998756,0.01121082,87742.0,87731.0,0.0114064]
[1766898999262,0.05704,87743.0,87731.0,0.0114064]
[1766898999560,0.01121082,87742.0,87731.0,0.0114064]
[1766899000057,0.05704,87743.0,87731.0,0.0114064]
[1766899000354,0.01121082,87742.0,87731.0,0.0114064]
[1766899000759,0.05704,87743.0,87731.0,0.0114064]
[1766899002856,0.05704,87743.0,87728.0,0.0684467]
[1766899003058,0.01121082,87742.0,87728.0,0.0684467]
[1766899003454,0.05704,87743.0,87728.0,0.0684467]
[1766899003654,0.01121082,87742.0,87728.0,0.0684467]
[1766899004455,0.05704,87743.0,87730.0,0.0114065]
[1766899004654,0.01121082,87742.0,87730.0,0.0114065]
[1766899005054,0.05704,87743.0,87730.0,0.0114065]
[1766899005255,0.01121082,87742.0,87730.0,0.0114065]
[1766899005761,0.05704,87743.0,87730.0,0.0114065]
[1766899009362,0.02508908,87742.0,87730.0,0.0114065]
[1766899009663,0.02508908,87741.0,87730.0,0.0114065]
[1766899009962,0.02508908,87740.0,87730.0,0.0114065]
[1766899010162,0.02508908,87739.0,87730.0,0.0114065]
[1766899010364,0.05704,87743.0,87730.0,0.0114065]
[1766899010553,0.02508897,87742.0,87730.0,0.0114065]
[1766899010753,0.02508897,87741.0,87730.0,0.0114065]
[1766899010952,0.02508897,87740.0,87730.0,0.0114065]
[1766899011158,0.02508897,87739.0,87730.0,0.0114065]
[1766899011358,0.05704,87743.0,87730.0,0.0114065]
[1766899011558,0.02508887,87742.0,87730.0,0.0114065]
[1766899011758,0.02508887,87741.0,87730.0,0.0114065]
[1766899011962,0.02508887,87740.0,87730.0,0.0114065]
[1766899012160,0.02508887,87739.0,87730.0,0.0114065]
[1766899012361,0.05704,87743.0,87730.0,0.0114065]
[1766899012566,0.02508879,87742.0,87730.0,0.0114065]
[1766899012759,0.02508879,87741.0,87730.0,0.0114065]
[1766899012961,0.02508879,87740.0,87730.0,0.0114065]
[1766899013160,0.02508879,87739.0,87730.0,0.0114065]
[1766899013360,0.05704,87743.0,87730.0,0.0114065]
[1766899013560,0.02508874,87742.0,87730.0,0.0114065]
[1766899013760,0.02508874,87741.0,87728.0,0.05704]
[1766899013966,0.02508874,87740.0,87728.0,0.05704]
[1766899014157,0.02508874,87739.0,87728.0,0.05704]
[1766899014356,0.02508874,87738.0,87728.0,0.05704]
[1766899014562,0.01121082,87742.0,87728.0,0.05704]
[1766899014766,0.02508868,87741.0,87728.0,0.05704]
[1766899014967,0.02508868,87740.0,87728.0,0.05704]
[1766899015266,0.02508868,87739.0,87728.0,0.05704]
[1766899015466,0.0684449,87743.0,87728.0,0.05704]
[1766899015467,0.02508868,87738.0,87728.0,0.05704]
[1766899015665,0.01121082,87741.0,87728.0,0.05704]
[1766899015861,0.02508869,87740.0,87728.0,0.05704]
[1766899016062,0.02508869,87739.0,87728.0,0.05704]
[1766899016263,0.02508869,87738.0,87728.0,0.05704]
[1766899016464,0.0684449,87743.0,87728.0,0.05704]
[1766899016665,0.02508879,87742.0,87728.0,0.05704]
[1766899016864,0.02508879,87741.0,87728.0,0.05704]
[1766899017065,0.02508879,87740.0,87728.0,0.05704]
[1766899017265,0.02508879,87739.0,87728.0,0.05704]
[1766899017463,0.02508879,87738.0,87728.0,0.05704]
[1766899017666,0.0684449,87743.0,87728.0,0.05704]
[1766899017867,0.02508874,87742.0,87728.0,0.05704]
[1766899018165,0.02508874,87741.0,87728.0,0.05704]
[1766899018366,0.02508874,87740.0,87728.0,0.05704]
[1766899018566,0.02508874,87739.0,87728.0,0.05704]
[1766899018768,0.02508874,87738.0,87728.0,0.05704]
[1766899018968,0.0684449,87743.0,87728.0,0.05704]
[1766899019167,0.02508892,87742.0,87728.0,0.05704]
[1766899019366,0.02508892,87741.0,87728.0,0.05704]
[1766899019566,0.02508892,87740.0,87728.0,0.05704]
[1766899019968,0.02508892,87739.0,87728.0,0.05704]
[1766899020269,0.02508892,87738.0,87728.0,0.05704]
[1766899020473,0.0684449,87743.0,87728.0,0.05704]
[1766899020666,0.02508929,87742.0,87728.0,0.05704]
[1766899020865,0.02508929,87741.0,87728.0,0.05704]
[1766899021166,0.02508929,87740.0,87728.0,0.05704]
[1766899021367,0.02508929,87739.0,87728.0,0.05704]
[1766899021568,0.02508929,87738.0,87728.0,0.05704]
[1766899021768,0.0684449,87743.0,87728.0,0.05704]
[1766899021970,0.02504282,87742.0,87728.0,0.05704]
[1766899022174,0.02504282,87741.0,87728.0,0.0684468]
[1766899022367,0.02504282,87740.0,87728.0,0.0684468]
[1766899022567,0.02504282,87739.0,87728.0,0.0684468]
[1766899022767,0.02504282,87738.0,87728.0,0.0684468]
[1766899022967,0.0684449,87743.0,87728.0,0.0684468]
[1766899023171,0.02504317,87742.0,87728.0,0.0684468]
[1766899023370,0.02504317,87741.0,87728.0,0.0684468]
[1766899023570,0.02504317,87740.0,87728.0,0.0684468]
[1766899023770,0.02504317,87739.0,87728.0,0.0684468]
[1766899023974,0.02504317,87738.0,87728.0,0.0684468]
[1766899024163,0.0684449,87743.0,87728.0,0.0684468]
[1766899024363,0.02504395,87742.0,87728.0,0.0684468]
[1766899024566,0.02504395,87741.0,87728.0,0.0684468]
[1766899024873,0.02504395,87740.0,87728.0,0.0684468]
[1766899025073,0.02504395,87739.0,87728.0,0.0684468]
[1766899029076,0.02504395,87738.0,87728.0,0.0684468]
[1766899029277,0.05704,87743.0,87728.0,0.0684468]
[1766899029478,0.02504713,87742.0,87728.0,0.0684468]
[1766899029669,0.02504713,87741.0,87728.0,0.0684468]
[1766899029968,0.02504713,87740.0,87728.0,0.0684468]
[1766899030168,0.02504713,87739.0,87728.0,0.0684468]
[1766899030468,0.02504713,87738.0,87728.0,0.0684468]
[1766899030669,0.05704,87743.0,87728.0,0.0684468]
[1766899030870,0.02504711,87742.0,87728.0,0.0684468]
[1766899031073,0.02504711,87741.0,87728.0,0.0684468]
[1766899031278,0.02504711,87740.0,87728.0,0.0684468]
[1766899031478,0.02504711,87739.0,87728.0,0.0684468]
[1766899031679,0.02504711,87738.0,87728.0,0.0684468]
[1766899031978,0.05704,87743.0,87728.0,0.0684468]
[1766899032180,0.02504719,87742.0,87728.0,0.0684468]
[1766899032480,0.02504719,87741.0,87728.0,0.0684468]
[1766899032779,0.02504719,87740.0,87728.0,0.0684468]
[1766899032981,0.02504719,87739.0,87728.0,0.0684468]
[1766899033277,0.05704,87744.0,87728.0,0.0684468]
[1766899033486,0.02504709,87743.0,87728.0,0.0684468]
[1766899033782,0.02504709,87742.0,87728.0,0.0684468]
[1766899033978,0.02504709,87741.0,87728.0,0.0684468]
[1766899034174,0.02504709,87740.0,87728.0,0.0684468]
[1766899034476,0.02504709,87739.0,87728.0,0.0684468]
[1766899034773,0.02504709,87738.0,87728.0,0.0684468]
[1766899034974,0.05704,87744.0,87728.0,0.0684468]
[1766899035181,0.02504698,87743.0,87728.0,0.0684468]
[1766899035480,0.02504698,87742.0,87728.0,0.0684468]
[1766899035682,0.02504698,87741.0,87728.0,0.0684468]
[1766899038276,0.02504698,87741.0,87728.0,0.05704]
[1766899039076,0.11447691,87740.0,87728.0,0.05704]
[1766899039277,0.02504698,87739.0,87728.0,0.05704]
[1766899053089,0.03645238,87739.0,87728.0,0.05704]
[1766899053288,0.02504698,87738.0,87728.0,0.05704]
[1766899053485,0.0114054,87739.0,87728.0,0.05704]
[1766899053680,0.02492845,87738.0,87728.0,0.05704]
[1766899053886,0.0114054,87739.0,87728.0,0.05704]
[1766899054188,0.02492862,87738.0,87728.0,0.05704]
[1766899054383,0.05704,87737.0,87727.0,0.00017102]
[1766899056589,0.05704,87737.0,87724.0,0.05704]
[1766899058700,0.11447691,87734.0,87724.0,0.05704]
[1766899059502,0.0684458,87737.0,87724.0,0.05704]
[1766899059691,0.02492293,87736.0,87724.0,0.05704]
[1766899059893,0.0684458,87737.0,87724.0,0.05704]
[1766899060193,0.02492294,87736.0,87724.0,0.05704]
[1766899060390,0.0684458,87737.0,87724.0,0.05704]
[1766899060593,0.02492151,87736.0,87724.0,0.05704]
[1766899060789,0.0684458,87737.0,87724.0,0.05704]
[1766899061001,0.02492152,87736.0,87724.0,0.05704]
[1766899061302,0.0684458,87737.0,87724.0,0.05704]
[1766899061503,0.0249204,87736.0,87724.0,0.05704]
[1766899061694,0.0684458,87737.0,87724.0,0.05704]
[1766899061894,0.02492042,87736.0,87724.0,0.05704]
[1766899062095,0.0684458,87737.0,87724.0,0.05704]
[1766899062305,0.0249204,87736.0,87724.0,0.05704]
[1766899062505,0.0684458,87737.0,87724.0,0.05704]
[1766899062695,0.02491963,87736.0,87724.0,0.05704]
[1766899062893,0.0684458,87737.0,87724.0,0.05704]
[1766899063095,0.02491961,87736.0,87724.0,0.05704]
[1766899063395,0.0684458,87737.0,87724.0,0.05704]
[1766899064001,0.02491904,87736.0,87724.0,0.05704]
[1766899064205,0.0684458,87737.0,87724.0,0.05704]
[1766899064507,0.02491852,87736.0,87724.0,0.05704]
[1766899064710,0.0684458,87737.0,87724.0,0.05704]
[1766899064896,0.02491858,87736.0,87724.0,0.05704]
[1766899065193,0.0684458,87737.0,87724.0,0.05704]
[1766899065394,0.02491823,87736.0,87724.0,0.05704]
[1766899065607,0.0684458,87737.0,87724.0,0.05704]
[1766899065805,0.02491822,87736.0,87724.0,0.05704]
[1766899066005,0.0684458,87737.0,87724.0,0.05704]
[1766899066206,0.02491835,87736.0,87724.0,0.05704]
[1766899066398,0.0249181,87735.0,87724.0,0.05704]
[1766899066602,0.0684458,87737.0,87724.0,0.05704]
[1766899066803,0.02491812,87736.0,87724.0,0.05704]
[1766899067101,0.02491812,87735.0,87724.0,0.05704]
[1766899067301,0.0684458,87737.0,87724.0,0.05704]
[1766899067602,0.02491803,87736.0,87724.0,0.05704]
[1766899067803,0.02491803,87735.0,87722.0,0.01157852]
[1766899068004,0.0684458,87737.0,87722.0,0.01157852]
[1766899068310,0.02491803,87736.0,87722.0,0.01157852]
[1766899068510,0.0684458,87737.0,87722.0,0.01157852]
[1766899068511,0.02491803,87735.0,87722.0,0.01157852]
[1766899068695,0.0684458,87737.0,87722.0,0.01157852]
[1766899068898,0.02491806,87736.0,87722.0,0.00017102]
[1766899069095,0.02491806,87735.0,87722.0,0.00017102]
[1766899069308,0.0684458,87737.0,87722.0,0.00017102]
[1766899069507,0.02491785,87736.0,87722.0,0.00017102]
[1766899069810,0.02491785,87735.0,87722.0,0.00017102]
[1766899070008,0.0684458,87737.0,87722.0,0.00017102]
[1766899070307,0.02491785,87736.0,87722.0,0.00017102]
[1766899070508,0.02491785,87735.0,87722.0,0.00017102]
[1766899070708,0.0684458,87737.0,87722.0,0.00017102]
[1766899070908,0.02491772,87736.0,87722.0,0.00017102]
[1766899071103,0.02491772,87735.0,87722.0,0.00017102]
[1766899071305,0.12588321,87732.0,87722.0,0.00017102]
[1766899074103,0.12588321,87732.0,87720.0,0.05704]
[1766899079308,0.11447691,87732.0,87720.0,0.05704]
[1766899081907,0.11447691,87732.0,87720.0,0.0684478]
[1766899085818,0.11447691,87730.0,87720.0,0.0684478]
[1766899094727,0.05704,87737.0,87720.0,0.05704]
[1766899094922,0.02486242,87736.0,87724.0,0.0114073]
[1766899095118,0.02486242,87735.0,87721.0,0.0114077]
[1766899095429,0.02486242,87734.0,87721.0,0.0114077]
[1766899095635,0.02486242,87733.0,87721.0,0.0114077]
[1766899095929,0.02486242,87732.0,87723.0,0.0114074]
[1766899096120,0.05704,87737.0,87723.0,0.0114074]
[1766899108037,0.02487636,87736.0,87723.0,0.0114074]
[1766899108238,0.02487636,87735.0,87723.0,0.0114074]
[1766899108439,0.02487636,87734.0,87723.0,0.0114074]
[1766899108739,0.02487636,87733.0,87723.0,0.0114074]
[1766899108932,0.02487636,87732.0,87723.0,0.0114074]
[1766899109139,0.02487636,87731.0,87723.0,0.0114074]
[1766899109338,0.05704,87737.0,87723.0,0.0114074]
[1766899109540,0.02487642,87736.0,87723.0,0.0114074]
[1766899109840,0.02487642,87735.0,87723.0,0.0114074]
[1766899110033,0.02487642,87734.0,87723.0,0.0114074]
[1766899110233,0.02487642,87733.0,87723.0,0.0114074]
[1766899110433,0.02487642,87732.0,87723.0,0.0114074]
[1766899110732,0.02487642,87731.0,87723.0,0.0114074]
[1766899110926,0.0684457,87737.0,87723.0,0.0114074]
[1766899111130,0.02487811,87736.0,87723.0,0.0114074]
[1766899111333,0.02487811,87735.0,87723.0,0.0114074]
[1766899111535,0.02487811,87734.0,87723.0,0.0114074]
[1766899111735,0.02487811,87733.0,87723.0,0.0114074]
[1766899111934,0.02487811,87732.0,87723.0,0.0114074]
[1766899112150,0.02487811,87731.0,87723.0,0.0114074]
[1766899112336,0.02487811,87730.0,87723.0,0.0114074]
[1766899112637,0.0684457,87737.0,87723.0,0.0114074]
[1766899112945,0.0249835,87736.0,87723.0,0.0114074]
[1766899113245,0.0249835,87735.0,87723.0,0.0114074]
[1766899113452,0.0249835,87734.0,87723.0,0.0114074]
[1766899113640,0.0249835,87733.0,87723.0,0.0114074]
[1766899113848,0.0249835,87732.0,87723.0,0.0114074]
[1766899114054,0.0249835,87731.0,87723.0,0.0114074]
[1766899114254,0.0249835,87730.0,87723.0,0.0114074]
[1766899114555,0.0684457,87737.0,87723.0,0.0114074]
[1766899114758,0.02498378,87736.0,87723.0,0.0114074]
[1766899114958,0.02498378,87735.0,87723.0,0.0114074]
[1766899115258,0.02498378,87734.0,87723.0,0.0114074]
[1766899115567,0.02498378,87733.0,87723.0,0.0114074]
[1766899115756,0.02498378,87732.0,87723.0,0.0114074]
[1766899116066,0.02498378,87731.0,87723.0,0.0114074]